[Event "Polish University-ch Teams 2024"]
[Site "Lublin"]
[Date "2024.02.24"]
[Round "3.10"]
[White "Karpus, Michal"]
[Black "Drozdowski, Konrad"]
[Result "1/2-1/2"]
[ECO "C31"]
[WhiteElo "2243"]
[BlackElo "2117"]
[Annotator "TA"]
[PlyCount "126"]
[EventDate "2024.02.22"]
[EventType "team-tourn"]
[EventCountry "POL"]
[SourceTitle "playchess.com"]
[Source "ChessBase"]
[SourceQuality "1"]
[TimeControl "900+5"]

{[%evp 9,126,33,42,27,27,12,47,-5,0,0,-4,0,-4,-41,-29,-33,-33,-37,-34,-47,-27,-37,-25,-25,-13,-29,-14,-35,-23,-38,-33,-52,-22,-21,2,-11,-9,-8,0,0,0,-23,21,21,26,0,0,0,0,0,21,7,0,0,0,-9,-8,-79,-79,-81,-68,-84,-79,-82,-76,-82,-72,-100,-65,-59,-66,-86,-83,-87,-85,-103,-76,-108,-117,-125,0,-106,-105,-534,-90,-94,-85,-81,-80,-83,-83,-85,-82,-81,-52,-64,-70,-68,-69,-76,-93,-109,-109,-204,-150,-196,-112,-110,-110,-110,-35,-44,-12,-12,-12,-35,0,0,0]} 1. e4 {[%emt 0:00:01]} e5 {[%emt 0:00:00]} 2. f4 {[%emt 0:00:05]} d5 {[%emt 0:00:03]} 3. exd5 {[%emt 0:00:02]} c6 {[%emt 0:00:01]} 4. d3 {[%emt 0:01:09]} Qxd5 {[%emt 0:01:15]} 5. Nc3 {[%emt 0:00:08]} Qe6 {[%emt 0:00:32]} 6. fxe5 {[%emt 0:00:34]} Qxe5+ {[%emt 0:00:14]} 7. Nge2 {[%emt 0:00:05]} (7. Qe2 {vereinfacht} Qxe2+ 8. Ngxe2 Nf6 9. h3) 7... Bg4 {[%emt 0:00:20]} 8. Bf4 {[%emt 0:00:16]} ({Besser ist} 8. d4 $14 Qf6 9. h3) 8... Qxf4 $11 {[%emt 0:00:28]} 9. Nxf4 {[%emt 0:00:03]} Bxd1 {[%emt 0:00:01]} 10. Rxd1 {[%emt 0:00:34]} Bd6 {[%emt 0:00:07]} 11. Nfe2 {[%emt 0:00:25][%cal Bf4e2,Be2d4,Bd4f5][%mdl 32]} Nf6 {[%emt 0:00:09]} 12. Kd2 {[%emt 0:00:53]} Nbd7 {[%emt 0:00:28]} 13. g3 {[%emt 0:00:03]} O-O {[%emt 0:00:21]} 14. Bg2 {[%emt 0:00:12]} Ne5 {[%emt 0:00:22]} 15. Nd4 {[%emt 0:00:15]} Neg4 {[%emt 0:00:37] Droht stark ...Nf2.} 16. Rde1 {[%emt 0:00:38]} Rfe8 {[%emt 0:00:23]} 17. Nf5 {[%emt 0:00:15]} Bc7 {[%emt 0:01:00]} 18. h3 {[%emt 0:00:40]} Ne5 {[%emt 0:00:03][%cal Bg4e5,Be5g6,Bg6f4][%mdl 32]} 19. Rhf1 {[%emt 0:00:41]} Rad8 {[%emt 0:00:25]} 20. Kc1 {[%emt 0:00:46]} Re6 {[%emt 0:00:43]} 21. g4 {[%emt 0:00:55]} Rde8 {[%emt 0:00:20][%cal Oe5d3] Und jetzt ...Nxd3+! wäre schön.} 22. Kd1 {[%emt 0:00:06]} Ng6 {[%emt 0:00:43]} 23. Ne4 {[%emt 0:00:59]} Nxe4 {[%emt 0:01:00]} 24. Bxe4 {[%emt 0:00:10]} Nf4 {[%emt 0:00:40]} 25. h4 {[%emt 0:01:05]} Ng6 {[%emt 0:06:55]} 26. h5 {[%emt 0:00:18]} Ne7 {[%emt 0:00:00]} 27. h6 {[%emt 0:01:30]} Nxf5 {[%emt 0:00:00]} 28. gxf5 {[%emt 0:00:01]} Rxh6 {[%emt 0:00:00]} 29. Bxc6 $1 {[%emt 0:00:01]} Rf8 {[%emt 0:00:00]} 30. Bd5 {[%emt 0:00:43]} Bd8 {[%emt 0:00:00] Pariert Re7.} 31. b4 {[%emt 0:01:45]} b6 {[%emt 0:00:00]} 32. b5 {[%emt 0:00:20]} Rh4 {[%emt 0:00:00]} 33. Re2 {[%emt 0:01:01] [#]} (33. c4 $11) 33... Rb4 $1 $17 {[%emt 0:00:00]} 34. Bb3 {[%emt 0:01:06]} Rxb5 {[%emt 0:00:00]} 35. Re4 {[%emt 0:00:06]} Bf6 {[%emt 0:00:00]} 36. Kd2 {[%emt 0:00:06]} h6 {[%emt 0:00:00]} 37. d4 {[%emt 0:00:03]} Rd8 {[%emt 0:00:00]} 38. c3 {[%emt 0:00:01]} Re5 {[%emt 0:00:00]} 39. Rxe5 {[%emt 0:00:07]} Bxe5 $15 {[%emt 0:00:00][%mdl 4096] Endspiel. KRB-KRB} 40. Ke3 {[%emt 0:00:03]} Bf6 {[%emt 0:00:00]} 41. Ke4 {[%emt 0:00:02]} h5 {[%emt 0:00:00]} 42. Ba4 {[%emt 0:00:13]} h4 {[%emt 0:00:00]} 43. Bc6 {[%emt 0:00:03]} Rc8 {[%emt 0:00:31]} 44. Kd5 {[%emt 0:00:06]} Rd8+ {[%emt 0:00:02]} (44... Rc7 $17 45. Re1 Bg5) 45. Kc4 {[%emt 0:00:02]} (45. Ke4 $11 {war der einzige Weg, das Gleichgewicht zu halten.}) 45... Kh7 $17 {[%emt 0:00:09]} 46. Bd5 $2 {[%emt 0:00:10][%mdl 8192]} (46. Be4 $17 {ist eine bessere Chance.}) 46... Rc8+ $2 {[%emt 0:00:06]} (46... b5+ $1 $19 {ist viel giftiger.} 47. Kc5 Be7+ 48. Kxb5 Rxd5+ 49. Kc6 Rd6+ 50. Kb7 Kh6) 47. Kd3 {[%emt 0:00:01]} Rc7 {[%emt 0:00:01]} 48. c4 {[%emt 0:00:02]} Kh6 {[%emt 0:00:04]} 49. Rg1 {[%emt 0:00:02]} Bg5 {[%emt 0:00:09]} 50. a4 {[%emt 0:00:09]} Re7 {[%emt 0:00:09]} 51. Be4 {[%emt 0:00:04]} g6 {[%emt 0:00:28]} 52. fxg6 {[%emt 0:00:06]} fxg6 {[%emt 0:00:01]} 53. a5 {[%emt 0:00:01]} Rg7 {[%emt 0:00:06]} ({Natürlich nicht} 53... bxa5 $6 54. c5 $16) 54. axb6 {[%emt 0:00:10]} axb6 {[%emt 0:00:01]} 55. Rb1 {[%emt 0:00:09] [#]} Bd8 {[%emt 0:00:03]} 56. d5 {[%emt 0:00:01]} (56. Rf1 $17) 56... Bc7 {[%emt 0:00:05]} 57. Kd4 {[%emt 0:00:03]} (57. Rf1 $17 {war einen Versuch wert.}) 57... g5 {[%emt 0:00:02]} (57... Rf7 $19 {Weiss muss nun ...g5 beachten.} 58. Rb3 Re7) 58. c5 {[%emt 0:00:09]} bxc5+ {[%emt 0:00:01]} 59. Kxc5 {[%emt 0:00:01]} g4 {[%emt 0:00:11]} (59... Bf4 $17 {...Rc7+ ist eine echte Drohung.} 60. d6 Rd7) 60. d6 $15 {[%emt 0:00:01]} Bxd6+ {[%emt 0:00:10]} 61. Kxd6 {[%emt 0:00:01]} Kg5 {[%emt 0:00:03]} 62. Ke5 {[%emt 0:00:09]} Re7+ {[%emt 0:00:02][%mdl 1024] Schwarz hat Kompensation.} 63. Kd4 {[%emt 0:00:00]} g3 {[%emt 0:00:09] Gewichteter Fehlerwert: Weiß=0.28 (präzise) /Schwarz=0.25 (präzise) .  Verlustzug:     	Weiß=1     	---        Gewinn verpasst:   	---       	Schwarz=1     Fehler:       	Weiß=5     	Schwarz=3     Ungenau:       	Weiß=4     	Schwarz=7     OK:         	Weiß=14    	Schwarz=18    Bester:       	Weiß=3     	Schwarz=2     Stark:        	Weiß=1     	Schwarz=1} 1/2-1/2

[Event "Polish University-ch Teams 2024"]
[Site "Lublin"]
[Date "2024.02.24"]
[Round "3.11"]
[White "Paziak, Patryk"]
[Black "Syrkiewicz, Michal"]
[Result "0-1"]
[ECO "B41"]
[WhiteElo "1781"]
[BlackElo "2074"]
[Annotator "NA RC"]
[PlyCount "67"]
[EventDate "2024.02.22"]
[EventType "team-tourn"]
[EventCountry "POL"]
[SourceTitle "playchess.com"]
[Source "ChessBase"]
[SourceQuality "1"]
[TimeControl "900+5"]

1. e4 {[%emt 0:00:03]} c5 {[%emt 0:00:01]} 2. Nf3 {[%emt 0:00:01]} e6 {[%emt 0:00:01]} 3. d4 {[%emt 0:00:01]} cxd4 {[%emt 0:00:01]} 4. Nxd4 {[%emt 0:00:02]} a6 {[%emt 0:00:00]} 5. c4 {[%emt 0:00:01]} Nf6 {[%emt 0:00:02]} 6. Nc3 {[%emt 0:00:01]} Bb4 {[%emt 0:00:01]} 7. Qd3 {[%emt 0:00:04]} O-O {[%emt 0:00:02]} 8. Be2 {[%emt 0:00:10]} Nc6 {[%emt 0:00:13]} 9. Nxc6 {[%emt 0:00:01]} dxc6 {[%emt 0:00:08]} 10. Qxd8 {[%emt 0:00:27]} Rxd8 {[%emt 0:00:01]} 11. Bg5 {[%emt 0:00:01]} e5 {[%emt 0:00:57]} 12. a3 {[%emt 0:01:00]} Bxc3+ {[%emt 0:01:36]} 13. bxc3 {[%emt 0:00:02]} b5 {[%emt 0:00:11]} 14. a4 {[%emt 0:02:28]} Be6 {[%emt 0:00:21]} 15. O-O {[%emt 0:04:00]} Bxc4 {[%emt 0:00:39]} 16. Bxc4 {[%emt 0:00:11]} bxc4 {[%emt 0:00:02]} 17. f4 {[%emt 0:00:01]} Rd3 {[%emt 0:01:09]} 18. Bxf6 {[%emt 0:00:39]} gxf6 {[%emt 0:00:05]} 19. fxe5 {[%emt 0:00:01]} fxe5 {[%emt 0:00:01]} 20. Rf6 {[%emt 0:00:32]} Rxc3 {[%emt 0:01:10]} 21. Rxc6 {[%emt 0:00:04]} Rc2 {[%emt 0:00:10]} 22. Rf1 {[%emt 0:00:56]} Rd8 {[%emt 0:05:34]} 23. Kh1 {[%emt 0:03:57]} Rd7 {[%emt 0:02:01]} 24. h4 {[%emt 0:00:41]} h5 {[%emt 0:00:55]} 25. Rf5 {[%emt 0:00:25]} Rd1+ {[%emt 0:00:22]} 26. Kh2 {[%emt 0:00:01]} Rdd2 {[%emt 0:00:07]} 27. Rc8+ {[%emt 0:00:20]} Kg7 {[%emt 0:00:02]} 28. Rg5+ {[%emt 0:00:01]} Kf6 {[%emt 0:00:02]} 29. Rc6+ {[%emt 0:00:20]} Ke7 {[%emt 0:00:02]} 30. Rc7+ {[%emt 0:00:20]} Ke6 {[%emt 0:00:27]} 31. Rc6+ {[%emt 0:00:34]} Rd6 {[%emt 0:00:28]} 32. Rc8 {[%emt 0:00:01]} c3 {[%emt 0:00:12]} 33. Re8+ {[%emt 0:00:06]} Kd7 {[%emt 0:00:04]} 34. Rexe5 {[%emt 0:00:23]} 0-1

[Event "Polish University-ch Teams 2024"]
[Site "Lublin"]
[Date "2024.02.24"]
[Round "3.12"]
[White "Harazinska, Magdalena"]
[Black "Rykala, Monika"]
[Result "1/2-1/2"]
[ECO "A90"]
[WhiteElo "1950"]
[BlackElo "1893"]
[Annotator "NA RC"]
[PlyCount "83"]
[EventDate "2024.02.22"]
[EventType "team-tourn"]
[EventCountry "POL"]
[SourceTitle "playchess.com"]
[Source "ChessBase"]
[SourceQuality "1"]
[TimeControl "900+5"]

1. d4 {[%emt 0:00:02]} d5 {[%emt 0:00:01]} 2. c4 {[%emt 0:00:01]} e6 {[%emt 0:00:02]} 3. Nc3 {[%emt 0:00:01]} c6 {[%emt 0:00:01]} 4. Nf3 {[%emt 0:00:02]} f5 {[%emt 0:00:01]} 5. g3 {[%emt 0:00:06]} Nf6 {[%emt 0:00:01]} 6. b3 {[%emt 0:00:01]} Bd6 {[%emt 0:00:10]} 7. Bg2 {[%emt 0:00:02]} O-O {[%emt 0:00:02]} 8. O-O {[%emt 0:00:02]} Bd7 {[%emt 0:00:10]} 9. Bb2 {[%emt 0:00:08]} Be8 {[%emt 0:00:18]} 10. Ne1 {[%emt 0:00:51]} Bh5 {[%emt 0:00:51]} 11. Nd3 {[%emt 0:00:16]} Qe7 {[%emt 0:01:27]} 12. Qc2 {[%emt 0:00:16]} Nbd7 {[%emt 0:01:19]} 13. Rae1 {[%emt 0:01:08]} Ne4 {[%emt 0:01:30]} 14. f3 {[%emt 0:01:10]} Nxg3 {[%emt 0:01:39]} 15. hxg3 {[%emt 0:00:40]} Bxg3 {[%emt 0:00:02]} 16. e3 {[%emt 0:01:45]} Qh4 {[%emt 0:00:32]} 17. Rf2 {[%emt 0:00:01]} Bxf2+ {[%emt 0:02:06]} 18. Qxf2 {[%emt 0:00:05]} Qxf2+ {[%emt 0:00:28]} 19. Kxf2 {[%emt 0:00:05]} Bf7 {[%emt 0:00:03]} 20. e4 {[%emt 0:00:49]} fxe4 {[%emt 0:00:25]} 21. fxe4 {[%emt 0:00:03]} dxc4 {[%emt 0:00:04]} 22. bxc4 {[%emt 0:00:14]} e5 {[%emt 0:00:06]} 23. Nxe5 {[%emt 0:01:29]} Nxe5 {[%emt 0:00:19]} 24. dxe5 {[%emt 0:00:02]} Bxc4+ {[%emt 0:00:01]} 25. Bf3 {[%emt 0:00:50]} Rad8 {[%emt 0:00:13]} 26. Bc1 {[%emt 0:00:48]} b5 {[%emt 0:03:40]} 27. a3 {[%emt 0:00:21]} a5 {[%emt 0:00:06]} 28. Nd1 {[%emt 0:01:00]} Rd3 {[%emt 0:00:27]} 29. Ne3 {[%emt 0:00:07]} Be6 {[%emt 0:00:03]} 30. Ke2 {[%emt 0:00:36]} Rd7 {[%emt 0:00:10]} 31. Bb2 {[%emt 0:01:17]} Rfd8 {[%emt 0:00:05]} 32. Bc3 {[%emt 0:00:28]} Ra8 {[%emt 0:00:33]} 33. Nf5 {[%emt 0:00:07]} Bc4+ {[%emt 0:00:17]} 34. Kf2 {[%emt 0:00:15]} Rd3 {[%emt 0:00:01]} 35. Re3 {[%emt 0:00:10]} Rxe3 {[%emt 0:00:32]} 36. Kxe3 {[%emt 0:00:07]} Ra7 {[%emt 0:00:01]} 37. Nd4 {[%emt 0:00:33]} c5 {[%emt 0:00:07]} 38. Nc6 {[%emt 0:00:02]} Rc7 {[%emt 0:00:07]} 39. Nxa5 {[%emt 0:00:06]} Be6 {[%emt 0:00:07]} 40. Be2 {[%emt 0:00:13]} c4 {[%emt 0:00:05]} 41. Kf4 {[%emt 0:00:31]} Kf7 {[%emt 0:00:01]} 42. Kg5 {[%emt 0:00:00]} 1/2-1/2

[Event "Polish University-ch Teams 2024"]
[Site "Lublin"]
[Date "2024.02.24"]
[Round "3.13"]
[White "Kosakowski, Jakub"]
[Black "Szpar, Milosz"]
[Result "1/2-1/2"]
[ECO "B28"]
[WhiteElo "2482"]
[BlackElo "2495"]
[Annotator "RC"]
[PlyCount "133"]
[EventDate "2024.02.22"]
[EventType "team-tourn"]
[EventCountry "POL"]
[SourceTitle "playchess.com"]
[Source "ChessBase"]
[SourceQuality "1"]
[TimeControl "900+5"]

1. e4 {[%emt 0:00:10]} c5 {[%emt 0:00:34]} 2. Nf3 {[%emt 0:00:08]} a6 {[%emt 0:00:35]} 3. c3 {[%emt 0:00:10]} d5 {[%emt 0:00:19]} 4. exd5 {[%emt 0:00:11]} Qxd5 {[%emt 0:00:15]} 5. d4 {[%emt 0:00:03]} Nf6 {[%emt 0:00:06]} 6. Be3 {[%emt 0:01:30]} cxd4 {[%emt 0:00:15]} 7. cxd4 {[%emt 0:00:03]} e6 {[%emt 0:00:04]} 8. Nc3 {[%emt 0:00:03]} Qa5 {[%emt 0:00:46]} 9. Bd3 {[%emt 0:00:12]} Nc6 {[%emt 0:01:03]} 10. O-O {[%emt 0:00:07]} Be7 {[%emt 0:00:04]} 11. Rc1 {[%emt 0:00:24]} Bd7 {[%emt 0:01:28]} 12. Bb1 {[%emt 0:02:06]} Rd8 {[%emt 0:00:57]} 13. Qd3 {[%emt 0:01:35]} Nb4 {[%emt 0:02:41]} 14. Qe2 {[%emt 0:01:27]} Qh5 {[%emt 0:00:13]} 15. Rfe1 {[%emt 0:00:42]} O-O {[%emt 0:00:36]} 16. Bg5 {[%emt 0:01:08]} Bc6 {[%emt 0:00:46]} 17. Ne4 {[%emt 0:00:09]} h6 {[%emt 0:01:35]} 18. Bxf6 {[%emt 0:01:21]} gxf6 {[%emt 0:00:25]} 19. a3 {[%emt 0:00:25]} Nd5 {[%emt 0:00:26]} 20. Ng3 {[%emt 0:00:48]} Qg4 {[%emt 0:00:18]} 21. h3 {[%emt 0:00:10]} Qg7 {[%emt 0:00:19]} 22. Nh5 {[%emt 0:00:17]} Qh8 {[%emt 0:00:06]} 23. Qd3 {[%emt 0:02:17]} Rfe8 {[%emt 0:00:08]} 24. Nh4 {[%emt 0:00:36]} f5 {[%emt 0:01:03]} 25. Qg3+ {[%emt 0:00:09]} Kf8 {[%emt 0:00:08]} 26. Rxe6 {[%emt 0:00:29]} Bg5 {[%emt 0:00:19]} 27. Rxe8+ {[%emt 0:00:22]} Rxe8 {[%emt 0:00:02]} 28. Rd1 {[%emt 0:00:10]} f4 {[%emt 0:00:36]} 29. Qg4 {[%emt 0:00:02]} Ba4 {[%emt 0:00:32]} 30. Rf1 {[%emt 0:00:01]} Bb5 {[%emt 0:00:23]} 31. Rc1 {[%emt 0:00:17]} f3 {[%emt 0:00:07]} 32. Nxf3 {[%emt 0:00:07]} Bxc1 {[%emt 0:00:04]} 33. Ne5 {[%emt 0:00:01]} Bg5 {[%emt 0:00:25]} 34. Ba2 {[%emt 0:00:05]} Rxe5 {[%emt 0:00:03]} 35. dxe5 {[%emt 0:00:01]} Qxe5 {[%emt 0:00:01]} 36. Qc8+ {[%emt 0:00:07]} Ke7 {[%emt 0:00:09]} 37. Qc5+ {[%emt 0:00:08]} Ke6 {[%emt 0:00:09]} 38. Ng7+ {[%emt 0:00:07]} Kf6 {[%emt 0:00:02]} 39. Nh5+ {[%emt 0:00:04]} Kg6 {[%emt 0:00:01]} 40. Bxd5 {[%emt 0:00:02]} Qe1+ {[%emt 0:00:11]} 41. Kh2 {[%emt 0:00:01]} Qe5+ {[%emt 0:00:08]} 42. Ng3 {[%emt 0:00:02]} Bf4 {[%emt 0:00:04]} 43. Qc2+ {[%emt 0:00:13]} Kg7 {[%emt 0:00:03]} 44. Bf3 {[%emt 0:00:05]} h5 {[%emt 0:00:03]} 45. h4 {[%emt 0:00:08]} Kh6 {[%emt 0:00:08]} 46. Bxb7 {[%emt 0:00:04]} Qe7 {[%emt 0:00:03]} 47. Bf3 {[%emt 0:00:06]} Qxh4+ {[%emt 0:00:02]} 48. Kg1 {[%emt 0:00:00]} Bxg3 {[%emt 0:00:05]} 49. fxg3 {[%emt 0:00:02]} Qxg3 {[%emt 0:00:01]} 50. Qf5 {[%emt 0:00:10]} Qe1+ {[%emt 0:00:03]} 51. Kh2 {[%emt 0:00:03]} Qh4+ {[%emt 0:00:02]} 52. Kg1 {[%emt 0:00:08]} Qe1+ {[%emt 0:00:05]} 53. Kh2 {[%emt 0:00:01]} Qh4+ {[%emt 0:00:02]} 54. Qh3 {[%emt 0:00:01]} Qxh3+ {[%emt 0:00:12]} 55. Kxh3 {[%emt 0:00:02]} Kg5 {[%emt 0:00:05]} 56. Kg3 {[%emt 0:00:08]} h4+ {[%emt 0:00:08]} 57. Kf2 {[%emt 0:00:01]} Kf4 {[%emt 0:00:01]} 58. b4 {[%emt 0:00:03]} f5 {[%emt 0:00:13]} 59. Bd1 {[%emt 0:00:04]} Ke5 {[%emt 0:00:07]} 60. a4 {[%emt 0:00:07]} Bc6 {[%emt 0:00:05]} 61. Be2 {[%emt 0:00:15]} Bxa4 {[%emt 0:00:08]} 62. Bxa6 {[%emt 0:00:02]} Kd4 {[%emt 0:00:03]} 63. Bc8 {[%emt 0:00:12]} Kc4 {[%emt 0:00:07]} 64. Bxf5 {[%emt 0:00:04]} Bc6 {[%emt 0:00:03]} 65. b5 {[%emt 0:00:06]} Kxb5 {[%emt 0:00:03]} 66. g3 {[%emt 0:00:02]} hxg3+ {[%emt 0:00:01]} 67. Kxg3 {[%emt 0:00:01]} 1/2-1/2

[Event "Polish University-ch Teams 2024"]
[Site "Lublin"]
[Date "2024.02.24"]
[Round "3.14"]
[White "Miasik, Adrian"]
[Black "Niedbala, Bartlomiej"]
[Result "0-1"]
[ECO "A80"]
[WhiteElo "2036"]
[BlackElo "2382"]
[Annotator "TA"]
[PlyCount "84"]
[EventDate "2024.02.22"]
[EventType "team-tourn"]
[EventCountry "POL"]
[SourceTitle "playchess.com"]
[Source "ChessBase"]
[SourceQuality "1"]
[TimeControl "900+5"]

{[%evp 9,83,-14,-24,-26,0,0,16,0,0,0,12,-22,16,-16,0,-26,6,-91,1,-12,6,13,0,9,16,-60,-54,-70,-54,-93,-65,-66,-60,-90,-56,-93,-89,-185,-194,-191,-70,-96,-59,-152,-78,-106,-118,-133,-135,-114,-109,-139,-95,-98,0,-105,-43,-73,0,-74,-66,-81,-91,-94,-92,-323,-267,-696,-277,-29994,-29995,-29995,-29996,-29996,-29997,-29999]} 1. d4 {[%emt 0:00:01]} f5 {[%emt 0:00:01]} 2. Bg5 {[%emt 0:00:03]} g6 {[%emt 0:00:03]} 3. e3 {[%emt 0:00:23]} Bg7 {[%emt 0:15:16]} 4. c4 {[%emt 0:02:27]} d6 {[%emt 0:00:00]} 5. h4 {[%emt 0:00:54]} h6 {[%emt 0:00:00]} 6. Bf4 {[%emt 0:00:02]} Nf6 {[%emt 0:00:15]} 7. Nc3 {[%emt 0:00:51]} O-O {[%emt 0:00:00]} 8. Be2 {[%emt 0:01:16] Die Stellung ist ausgeglichen.} Nbd7 {[%emt 0:00:00]} 9. Nf3 {[%emt 0:01:51][%cal Oc4c5]} c6 {[%emt 0:00:00]} 10. Qb3 {[%emt 0:01:23]} c5 {[%emt 0:00:00]} 11. d5 {[%emt 0:01:14]} a6 {[%emt 0:00:00][%cal Ob7b5]} 12. Nd2 {[%emt 0:01:41]} Rb8 {[%emt 0:00:00]} 13. Rg1 {[%emt 0:01:07]} (13. a4 $11) 13... Ne5 {[%emt 0:00:00]} ({Besser ist} 13... b5 $1 $17 {Weiss muss nun ...bxc4 beachten.} 14. cxb5 axb5 15. Bxb5 Nb6) 14. Qc2 {[%emt 0:00:32]} Kh8 {[%emt 0:00:00][%cal Ob7b5]} 15. f3 {[%emt 0:00:01][%cal Og2g4]} b5 {[%emt 0:00:00]} 16. Bxe5 {[%emt 0:00:15]} dxe5 {[%emt 0:00:00]} 17. e4 {[%emt 0:00:24]} (17. g4 $11) 17... b4 $15 {[%emt 0:00:00]} 18. Nd1 {[%emt 0:00:03]} Nh5 {[%emt 0:00:00]} 19. g4 {[%emt 0:00:24] Gegen e6 gerichtet.} fxg4 {[%emt 0:00:00]} 20. fxg4 {[%emt 0:00:06]} Nf4 {[%emt 0:00:00]} 21. Ne3 {[%emt 0:01:06]} Qd6 {[%emt 0:00:00]} 22. Nf3 {[%emt 0:00:17]} a5 {[%emt 0:00:00]} 23. O-O-O {[%emt 0:00:11] [#]} (23. Qd2 $17) 23... b3 $1 $19 {[%emt 0:00:00][%mdl 512]} 24. axb3 {[%emt 0:00:04]} Bd7 {[%emt 0:00:00]} (24... Rxb3 $19 25. Qxb3 Nxe2+ 26. Kd2 Nd4 (26... Nxg1 $2 27. Nxg1 Rf4 28. Ne2 $19) 27. Nxd4 exd4) 25. Bf1 $15 {[%emt 0:00:13][%cal Oh4h5]} Rb4 {[%emt 0:00:00]} 26. h5 {[%emt 0:00:13]} g5 {[%emt 0:00:00]} (26... a4 $142 27. Nd2 axb3 (27... gxh5 28. gxh5 axb3 29. Qc3 $17)) 27. Nf5 {[%emt 0:00:04]} Bxf5 {[%emt 0:00:00]} 28. gxf5 {[%emt 0:00:01]} Rfb8 {[%emt 0:00:00]} (28... Nxh5 29. Qh2 g4 30. Qxh5 $18 (30. Rxg4 Nf4 $18)) 29. Nd2 {[%emt 0:00:01]} Qa6 {[%emt 0:00:00] Schwarz steht deutlich aktiver.} (29... Nxh5 $2 30. Be2 Nf4 31. Rde1 $19) 30. Rg3 {[%emt 0:00:04]} Bf6 {[%emt 0:00:00][%cal Oh8g7]} 31. Nb1 {[%emt 0:00:09]} a4 {[%emt 0:00:00]} (31... Kg7 $17 32. Rc3 Nxh5) 32. Na3 {[%emt 0:00:24]} (32. bxa4 $1 $11 Rxa4 (32... Rxb2 33. Qxb2 Rxb2 34. Kxb2 $14) 33. Rb3) 32... axb3 {[%emt 0:00:00]} ({Günstiger ist} 32... Rxb3 $17 33. Rxb3 Rxb3 (33... axb3 $2 34. Qf2 $17)) 33. Qd2 {[%emt 0:00:00]} R8b6 {[%emt 0:00:08]} (33... Ra4 $17 34. Kb1 Kg7 (34... Nxh5 35. Rh3 $17) (34... Rxa3 35. bxa3 Qxa3 36. Qb2 $11)) 34. Be2 {[%emt 0:00:00] [#]} (34. Kb1 $11 {hält das Gleichgewicht.}) 34... Ra4 $1 $17 {[%emt 0:00:03]} 35. Kb1 $1 {[%emt 0:00:02]} Rxa3 $1 {[%emt 0:00:41]} 36. bxa3 {[%emt 0:00:02]} Qxa3 $40 {[%emt 0:00:00][%mdl 128] ...Qa4 ist eine echte Drohung. Weiss ist in Schwierigkeiten. Weiss hat schwache schwarze Felder} 37. Bg4 $2 {[%emt 0:00:04] Der Zug kostet die Partie für Weiß.} (37. Bf1 $17) 37... Qa4 $19 {[%emt 0:00:13][%cal Ob3b2] Und ...b2! würde nun gewinnen.} 38. Rc3 $2 {[%emt 0:00:06]} (38. Qb2 Qxc4 39. Re3) 38... b2 $2 {[%emt 0:00:04]} (38... Nxd5 39. cxd5 (39. exd5 $2 {verliert.} b2 $19) 39... b2 (39... Qxe4+ $2 40. Rd3 $19)) 39. Qe1 {[%emt 0:00:09]} (39. Qxb2 $19 Rxb2+ 40. Kxb2) 39... Qa1+ {[%emt 0:00:25] Schwarz setzt Matt.} 40. Kc2 {[%emt 0:00:01] [#]} b1=Q+ $1 {[%emt 0:00:02][%mdl 512]} 41. Rxb1 {[%emt 0:00:03]} Qa2+ {[%emt 0:00:01]} 42. Kc1 {[%emt 0:00:16]} Rxb1# {[%emt 0:00:01] Gewichteter Fehlerwert: Weiß=0.66/Schwarz=0.33.  Verlustzug:     	Weiß=1     	---        Fehler:       	Weiß=8     	Schwarz=7     Ungenau:       	Weiß=8     	Schwarz=7     OK:         	Weiß=3     	Schwarz=9     Bester:       	Weiß=2     	---        Stark:        	Weiß=1     	Schwarz=2     Brilliant:      	---       	Schwarz=1} 0-1

[Event "Polish University-ch Teams 2024"]
[Site "Lublin"]
[Date "2024.02.24"]
[Round "3.15"]
[White "Hasterok, Mateusz"]
[Black "Sygulski, Piotr"]
[Result "0-1"]
[ECO "A45"]
[WhiteElo "2150"]
[BlackElo "2035"]
[Annotator "RC"]
[PlyCount "86"]
[EventDate "2024.02.22"]
[EventType "team-tourn"]
[EventCountry "POL"]
[SourceTitle "playchess.com"]
[Source "ChessBase"]
[SourceQuality "1"]
[TimeControl "900+5"]

1. d4 {[%emt 0:00:01]} Nf6 {[%emt 0:00:01]} 2. Bg5 {[%emt 0:00:02]} Ne4 {[%emt 0:00:11]} 3. h4 {[%emt 0:00:02]} d5 {[%emt 0:00:07]} 4. Nd2 {[%emt 0:00:01]} Nxg5 {[%emt 0:00:04]} 5. hxg5 {[%emt 0:00:01]} Bf5 {[%emt 0:00:11]} 6. e3 {[%emt 0:00:05]} e6 {[%emt 0:00:09]} 7. Ngf3 {[%emt 0:00:51]} Be7 {[%emt 0:00:19]} 8. g6 {[%emt 0:00:06]} Bxg6 {[%emt 0:00:13]} 9. Ne5 {[%emt 0:00:01]} Nd7 {[%emt 0:00:30]} 10. Nxg6 {[%emt 0:00:03]} fxg6 {[%emt 0:00:01]} 11. Bd3 {[%emt 0:01:28]} Nf8 {[%emt 0:01:41]} 12. Qg4 {[%emt 0:00:06]} Qd7 {[%emt 0:00:38]} 13. O-O-O {[%emt 0:02:32]} O-O-O {[%emt 0:00:23]} 14. c3 {[%emt 0:00:09]} e5 {[%emt 0:01:11]} 15. Qg3 {[%emt 0:00:42]} e4 {[%emt 0:00:11]} 16. Be2 {[%emt 0:00:00]} Kb8 {[%emt 0:00:21]} 17. f3 {[%emt 0:00:03]} Bd6 {[%emt 0:00:21]} 18. Qf2 {[%emt 0:00:02]} exf3 {[%emt 0:00:11]} 19. gxf3 {[%emt 0:00:01]} Ne6 {[%emt 0:00:34]} 20. f4 {[%emt 0:00:32]} Rdf8 {[%emt 0:00:28]} 21. Qg2 {[%emt 0:00:03]} c6 {[%emt 0:00:15]} 22. Bg4 {[%emt 0:00:03]} Qe7 {[%emt 0:00:16]} 23. Nf3 {[%emt 0:00:22]} Nc7 {[%emt 0:01:14]} 24. Rde1 {[%emt 0:00:25]} Qe4 {[%emt 0:00:38]} 25. Qe2 {[%emt 0:00:55]} Bxf4 {[%emt 0:00:17]} 26. exf4 {[%emt 0:00:29]} Qxf4+ {[%emt 0:00:01]} 27. Nd2 {[%emt 0:00:01]} h5 {[%emt 0:00:02]} 28. Bh3 {[%emt 0:00:14]} g5 {[%emt 0:00:27]} 29. Qe7 {[%emt 0:01:38]} Rf7 {[%emt 0:00:50]} 30. Qe5 {[%emt 0:00:02]} g4 {[%emt 0:00:20]} 31. Rhf1 {[%emt 0:03:10]} Qxe5 {[%emt 0:00:02]} 32. dxe5 {[%emt 0:00:03]} Rxf1 {[%emt 0:00:25]} 33. Bxf1 {[%emt 0:00:01]} Ne6 {[%emt 0:00:08]} 34. Bd3 {[%emt 0:00:01]} Nf4 {[%emt 0:00:10]} 35. Bf5 {[%emt 0:00:28]} g6 {[%emt 0:00:10]} 36. Bc2 {[%emt 0:00:41]} h4 {[%emt 0:00:15]} 37. e6 {[%emt 0:00:04]} Kc7 {[%emt 0:00:18]} 38. e7 {[%emt 0:01:12]} Re8 {[%emt 0:00:06]} 39. Rf1 {[%emt 0:00:17]} g5 {[%emt 0:00:03]} 40. Re1 {[%emt 0:00:18]} Kd6 {[%emt 0:00:07]} 41. Bf5 {[%emt 0:00:01]} g3 {[%emt 0:00:10]} 42. Nf3 {[%emt 0:00:02]} Rxe7 {[%emt 0:00:27]} 43. Rg1 {[%emt 0:00:52]} Ne2+ {[%emt 0:00:01]} 0-1